fUST/lending_fUST_20250618
["ID","MTS","AMOUNT","RATE_DAILY","PERIOD"]
[366402580,1750233041135,-430.0,0.00021917,6]
[366402581,1750233041145,-431.69706481,0.00021917,6]
[366402582,1750233041155,-460.0,0.00021917,6]
[366402583,1750233041164,-460.0,0.00021917,6]
[366402584,1750233041174,-635.76,0.00021917,6]
[366402585,1750233041183,-460.0,0.00021917,6]
[366402586,1750233041193,-460.0,0.00021917,6]
[366402587,1750233041202,-544.70462059,0.00021917,6]
[366402588,1750233041211,-460.0,0.00021917,6]
[366402589,1750233041221,-460.0,0.00021917,6]
[366402590,1750233041231,-440.0,0.00021917,6]
[366402591,1750233041241,-460.0,0.00021917,6]
[366402592,1750233041251,-460.0,0.00021917,6]
[366402593,1750233041261,-430.0,0.00021917,6]
[366402594,1750233041270,-460.0,0.00021917,6]
[366402595,1750233041279,-440.0,0.00021917,6]
[366402596,1750233041288,-440.0,0.00021917,6]
[366402597,1750233041298,-414.70472296,0.00021917,6]
[366402598,1750233041307,-460.0,0.00021917,6]
[366402599,1750233041317,-460.0,0.00021917,6]
[366402600,1750233041327,-460.0,0.00021917,6]
[366402601,1750233041336,-460.0,0.00021917,6]
[366402602,1750233041345,-460.0,0.00021917,6]
[366402603,1750233041355,-460.0,0.00021917,6]
[366402604,1750233041365,-430.0,0.00021917,6]
[366402605,1750233041375,-430.0,0.00021917,6]
[366402606,1750233041385,-460.0,0.00021917,6]
[366402607,1750233041395,-440.0,0.00021917,6]
[366402608,1750233041404,-460.0,0.00021917,6]
[366402609,1750233041414,-1685.8,0.00021917,6]
[366402610,1750233041423,-460.0,0.00021917,6]
[366402611,1750233041433,-460.0,0.00021917,6]
[366402612,1750233041442,-460.0,0.00021917,6]
[366402613,1750233041452,-214.68019203,0.00021917,6]
[366402614,1750233041462,-500.0,0.00021917,2]
[366402615,1750233041472,-460.0,0.00021917,6]
[366402616,1750233041481,-460.0,0.00021917,6]
[366402617,1750233041491,-576.25,0.00021917,6]
[366402618,1750233041500,-440.53978358,0.00021917,6]
[366402619,1750233041510,-460.0,0.00021917,6]
[366402620,1750233041520,-460.0,0.00021917,6]
[366402621,1750233041530,-665.73,0.00021917,6]
[366402622,1750233041539,-440.0,0.00021917,6]
[366402623,1750233041554,-460.0,0.00021917,6]
[366402624,1750233041563,-255.16769058,0.00021969,6]
[366402625,1750233041573,-509.0,0.00021976,2]
[366402626,1750233041583,-2374.08,0.00022,7]
[366402627,1750233041594,-59618.72,0.00022,7]
[366402628,1750233041603,-460.0,0.00022027,6]
[366402629,1750233041613,-460.0,0.00022027,6]
[366402630,1750233041623,-460.0,0.00022027,6]
[366402631,1750233041632,-500.0,0.00022027,6]
[366402632,1750233041642,-460.0,0.00022027,6]
[366402633,1750233041651,-440.43,0.00022027,6]
[366402634,1750233041661,-460.0,0.00022027,6]
[366402635,1750233041670,-460.0,0.00022027,6]
[366402636,1750233041680,-506.77,0.00022027,6]
[366402637,1750233041690,-460.0,0.00022027,6]
[366402638,1750233041699,-460.0,0.00022027,6]
[366402639,1750233041710,-460.0,0.00022027,6]
[366402640,1750233041719,-460.0,0.00022027,6]
[366402641,1750233041728,-460.0,0.00022027,6]
[366402642,1750233041738,-460.0,0.00022027,6]
[366402643,1750233041747,-834.99,0.00022027,6]
[366402644,1750233041756,-460.0,0.00022027,6]
[366402645,1750233041765,-570.41,0.00022027,6]
[366402646,1750233041775,-695.73,0.00022027,6]
[366402647,1750233041785,-460.0,0.00022027,6]
[366402648,1750233041794,-460.0,0.00022027,6]
[366402649,1750233041804,-460.0,0.00022027,6]
[366402650,1750233041813,-460.0,0.00022027,6]
[366402651,1750233041823,-460.0,0.00022027,6]
[366402652,1750233041833,-1154.85,0.00022027,6]
[366402653,1750233041843,-460.0,0.00022027,6]
[366402654,1750233041852,-488.72,0.00022027,6]
[366402655,1750233041862,-460.0,0.00022027,6]
[366402656,1750233041871,-460.0,0.00022027,6]
[366402657,1750233041881,-460.0,0.00022027,2]
[366402658,1750233041890,-460.0,0.00022027,6]
[366402659,1750233041899,-460.0,0.00022027,6]
[366402660,1750233041909,-440.0,0.00022027,6]
[366402661,1750233041919,-460.0,0.00022027,6]
[366402662,1750233041929,-460.0,0.00022027,6]
[366402663,1750233041939,-460.0,0.00022027,6]
[366402664,1750233041949,-460.0,0.00022027,6]
[366402665,1750233041959,-460.0,0.00022027,6]
[366402666,1750233041969,-460.0,0.00022027,6]
[366402667,1750233041978,-582.78,0.00022027,6]
[366402668,1750233041988,-460.0,0.00022027,6]
[366402669,1750233041997,-460.0,0.00022027,6]
[366402670,1750233042007,-1685.8,0.00022027,6]
[366402671,1750233042017,-460.0,0.00022027,6]
[366402672,1750233042028,-460.0,0.00022027,6]
[366402673,1750233042038,-460.0,0.00022027,6]
[366402674,1750233042047,-460.0,0.00022027,6]
[366402675,1750233042057,-460.0,0.00022027,6]
[366402676,1750233042067,-576.25,0.00022027,6]
[366402677,1750233042077,-590.72,0.00022027,6]
[366402678,1750233042086,-665.73,0.00022027,6]
[366402679,1750233042096,-460.0,0.00022027,6]
[366402680,1750233042106,-460.0,0.00022136,6]
[366402681,1750233042115,-430.0,0.00022136,6]
[366402682,1750233042125,-460.0,0.00022136,6]
[366402683,1750233042134,-460.0,0.00022136,6]
[366402684,1750233042143,-834.99,0.00022136,6]
[366402685,1750233042153,-460.0,0.00022136,6]
[366402686,1750233042163,-570.41,0.00022136,6]
[366402687,1750233042172,-695.73,0.00022136,6]
[366402688,1750233042182,-460.0,0.00022136,6]
[366402689,1750233042192,-460.0,0.00022136,6]
[366402690,1750233042202,-460.0,0.00022136,6]
[366402691,1750233042211,-460.0,0.00022136,6]
[366402692,1750233042221,-1154.85,0.00022136,6]
[366402693,1750233042231,-537.03,0.00022136,6]
[366402694,1750233042241,-488.72,0.00022136,6]
[366402695,1750233042251,-460.0,0.00022136,6]
[366402696,1750233042260,-460.0,0.00022136,6]
[366402697,1750233042270,-460.0,0.00022136,6]
[366402698,1750233042279,-460.0,0.00022136,6]
[366402699,1750233042289,-460.0,0.00022136,6]
[366402700,1750233042298,-460.0,0.00022136,6]
[366402701,1750233042307,-460.0,0.00022136,6]
[366402702,1750233042316,-460.0,0.00022136,6]
[366402703,1750233042326,-460.0,0.00022136,6]
[366402704,1750233042336,-460.0,0.00022136,6]
[366402705,1750233042345,-1685.8,0.00022136,6]
[366402706,1750233042355,-460.0,0.00022136,6]
[366402707,1750233042364,-460.0,0.00022136,6]
[366402708,1750233042374,-527.09,0.00022136,6]
[366402709,1750233042383,-460.0,0.00022136,6]
[366402710,1750233042393,-576.25,0.00022136,6]
[366402711,1750233042403,-665.73,0.00022136,6]
[366402712,1750233042412,-255.16769058,0.00022176,6]
[366402713,1750233042422,-508.19,0.00022246,6]
[366402714,1750233042432,-460.0,0.00022246,6]
[366402715,1750233042441,-460.0,0.00022246,6]
[366402716,1750233042451,-834.99,0.00022246,6]
[366402717,1750233042461,-460.0,0.00022246,6]
[366402718,1750233042470,-570.41,0.00022246,6]
[366402719,1750233042479,-695.73,0.00022246,6]
[366402720,1750233042488,-460.0,0.00022246,6]
[366402721,1750233042497,-460.0,0.00022246,6]
[366402722,1750233042507,-460.0,0.00022246,6]
[366402723,1750233042516,-211.49,0.00022246,6]
[366402724,1750233042526,-1154.85,0.00022246,6]
[366402725,1750233042536,-488.72,0.00022246,6]
[366402726,1750233042550,-460.0,0.00022246,6]
[366402727,1750233042560,-460.0,0.00022246,6]
[366402728,1750233042569,-460.0,0.00022246,6]
[366402729,1750233042579,-460.0,0.00022246,6]
[366402730,1750233042590,-460.0,0.00022246,6]
[366402731,1750233042599,-474.6,0.00022246,6]
[366402732,1750233042609,-460.0,0.00022246,6]
[366402733,1750233042619,-460.0,0.00022246,6]
[366402734,1750233042630,-460.0,0.00022246,6]
[366402735,1750233042639,-460.0,0.00022246,6]
[366402736,1750233042649,-1685.8,0.00022246,6]
[366402737,1750233042658,-460.0,0.00022246,6]
[366402738,1750233042668,-460.0,0.00022246,6]
[366402739,1750233042678,-460.0,0.00022246,6]
[366402740,1750233042688,-576.25,0.00022246,6]
[366402741,1750233042697,-665.73,0.00022246,6]
[366402742,1750233042707,-600.0,0.00022328,2]
[366402743,1750233042717,-212.52,0.00022356,6]
[366402744,1750233042727,-460.0,0.00022356,6]
[366402745,1750233042736,-834.99,0.00022356,6]
[366402746,1750233042746,-460.0,0.00022356,6]
[366402747,1750233042756,-570.41,0.00022356,6]
[366402748,1750233042765,-695.73,0.00022356,6]
[366402749,1750233042775,-460.0,0.00022356,6]
[366402750,1750233042786,-460.0,0.00022356,6]
[366402751,1750233042796,-460.0,0.00022356,6]
[366402753,1750233042805,-1154.85,0.00022356,6]
[366402754,1750233042815,-488.72,0.00022356,6]
[366402755,1750233042824,-530.9,0.00022356,6]
[366402756,1750233042834,-460.0,0.00022356,6]
[366402758,1750233042843,-460.0,0.00022356,6]
[366402760,1750233042852,-460.0,0.00022356,6]
[366402761,1750233042862,-269.20986018,0.00022356,6]
[366402762,1750233042872,-460.0,0.00022356,6]
[366402763,1750233042882,-460.0,0.00022356,6]
[366402764,1750233042891,-526.28733765,0.00022356,6]
[366402765,1750233042901,-460.0,0.00022356,6]
[366402766,1750233042910,-1685.8,0.00022356,6]
[366402767,1750233042920,-460.0,0.00022356,6]
[366402768,1750233042929,-460.0,0.00022356,6]
[366402769,1750233042940,-487.35,0.00022356,6]
[366402771,1750233042949,-576.25,0.00022356,6]
[366402773,1750233042958,-665.73,0.00022356,6]
[366402774,1750233042968,-427.88079357,0.00022368,2]
[366402775,1750233042978,-255.16769058,0.00022383,7]
[366402776,1750233042987,-230.97615786,0.00022441,2]
[366402777,1750233042997,-460.0,0.00022465,6]
[366402778,1750233043007,-834.99,0.00022465,6]
[366402779,1750233043017,-460.0,0.00022465,6]
[366402780,1750233043027,-570.41,0.00022465,6]
[366402781,1750233043037,-695.73,0.00022465,6]
[366402782,1750233043047,-460.0,0.00022465,6]
[366402783,1750233043057,-460.0,0.00022465,6]
[366402784,1750233043068,-460.0,0.00022465,6]
[366402785,1750233043078,-1154.85,0.00022465,6]
[366402786,1750233043088,-488.72,0.00022465,6]
[366402787,1750233043097,-460.0,0.00022465,6]
[366402788,1750233043107,-460.0,0.00022465,6]
[366402789,1750233043117,-460.0,0.00022465,6]
[366402790,1750233043126,-460.0,0.00022465,6]
[366402791,1750233043136,-460.0,0.00022465,6]
[366402792,1750233043146,-460.0,0.00022465,6]
[366402793,1750233043155,-1685.8,0.00022465,6]
[366402794,1750233043261,-460.0,0.00022465,6]
[366402795,1750233043271,-460.0,0.00022465,6]
[366402796,1750233043281,-500.0,0.00022465,2]
[366402797,1750233043291,-576.25,0.00022465,6]
[366402798,1750233043300,-665.73,0.00022465,6]
[366402799,1750233043310,-426.41764757,0.0002255,2]
[366402800,1750233043320,-419.07,0.00022575,6]
[366402802,1750233043329,-834.99,0.00022575,6]
[366402804,1750233043339,-460.0,0.00022575,6]
[366402806,1750233043349,-570.41,0.00022575,6]
[366402807,1750233043358,-695.73,0.00022575,6]
[366402810,1750233043368,-460.0,0.00022575,6]
[366402811,1750233043377,-460.0,0.00022575,6]
[366402814,1750233043387,-460.0,0.00022575,6]
[366402815,1750233043397,-1154.85,0.00022575,6]
[366402818,1750233043407,-488.72,0.00022575,6]
[366402820,1750233043417,-460.0,0.00022575,6]
[366402821,1750233043426,-460.0,0.00022575,6]
[366402822,1750233043436,-460.0,0.00022575,6]
[366402823,1750233043445,-460.0,0.00022575,6]
[366402824,1750233043455,-460.0,0.00022575,6]
[366402825,1750233043464,-460.0,0.00022575,6]
[366402826,1750233043474,-1685.8,0.00022575,6]
[366402827,1750233043483,-460.0,0.00022575,6]
[366402828,1750233043493,-460.0,0.00022575,6]
[366402829,1750233043502,-576.25,0.00022575,6]
[366402830,1750233043512,-665.73,0.00022575,6]
[366402831,1750233043521,-255.16769058,0.0002259,7]
[366402832,1750233043531,-427.88079357,0.00022597,2]
[366402833,1750233043540,-587.0,0.00022621,2]
[366402834,1750233043553,-834.99,0.00022684,6]
[366402835,1750233043563,-460.0,0.00022684,6]
[366402836,1750233043573,-570.41,0.00022684,6]
[366402837,1750233043583,-695.73,0.00022684,6]
[366402838,1750233043592,-460.0,0.00022684,6]
[366402839,1750233043601,-233.4846379,0.00022684,6]
[366402840,1750233043611,-283.12,0.00022684,6]
[366402841,1750233043622,-1154.85,0.00022684,6]
[366402842,1750233043631,-488.72,0.00022684,6]
[366402843,1750233043640,-460.0,0.00022684,6]
[366402844,1750233043650,-460.0,0.00022684,6]
[366402845,1750233043659,-460.0,0.00022684,6]
[366402846,1750233043669,-460.0,0.00022684,6]
[366402847,1750233043678,-460.0,0.00022684,6]
[366402848,1750233043687,-460.0,0.00022684,6]
[366402849,1750233043697,-1685.8,0.00022684,6]
[366402850,1750233043707,-460.0,0.00022684,6]
[366402851,1750233043716,-460.0,0.00022684,6]
[366402852,1750233043726,-576.25,0.00022684,6]
[366402853,1750233043735,-665.73,0.00022684,6]
[366402854,1750233043745,-427.88079357,0.00022752,2]
[366402855,1750233043754,-5000.0,0.00022753,2]
[366402856,1750233043764,-207.4,0.00022753,2]
[366402857,1750233043773,-834.99,0.00022794,6]
[366402858,1750233043783,-460.0,0.00022794,6]
[366402859,1750233043792,-570.41,0.00022794,6]
[366402860,1750233043801,-695.73,0.00022794,6]
[366402861,1750233043811,-460.0,0.00022794,6]
[366402862,1750233043820,-1154.85,0.00022794,6]
[366402863,1750233043831,-488.72,0.00022794,6]
[366402864,1750233043840,-460.0,0.00022794,6]
[366402865,1750233043849,-460.0,0.00022794,6]
[366402866,1750233043859,-460.0,0.00022794,6]
[366402867,1750233043868,-460.0,0.00022794,6]
[366402868,1750233043877,-460.0,0.00022794,6]
[366402869,1750233043887,-320.75,0.00022794,6]
[366402870,1750233043896,-1685.8,0.00022794,6]
[366402871,1750233043905,-460.0,0.00022794,6]
[366402872,1750233043915,-460.0,0.00022794,6]
[366402873,1750233043924,-576.25,0.00022794,6]
[366402874,1750233043934,-665.73,0.00022794,6]
[366402875,1750233043943,-255.16769058,0.00022797,7]
[366402876,1750233043953,-486.0,0.00022841,2]
[366402877,1750233043961,-1200.0,0.00022876,2]
[366402878,1750233043971,-921.86,0.000229,7]
[366402879,1750233043980,-834.99,0.00022904,6]
[366402880,1750233043989,-460.0,0.00022904,6]
[366402881,1750233043998,-570.41,0.00022904,6]
[366402882,1750233044007,-695.73,0.00022904,6]
[366402883,1750233044017,-460.0,0.00022904,6]
[366402884,1750233044026,-1154.85,0.00022904,6]
[366402885,1750233044036,-488.72,0.00022904,6]
[366402886,1750233044045,-460.0,0.00022904,6]
[366402887,1750233044055,-460.0,0.00022904,6]
[366402888,1750233044064,-460.0,0.00022904,6]
[366402889,1750233044073,-460.0,0.00022904,6]
[366402890,1750233044083,-460.0,0.00022904,6]
[366402891,1750233044093,-1685.8,0.00022904,6]
[366402892,1750233044103,-460.0,0.00022904,6]
[366402893,1750233044112,-460.0,0.00022904,6]
[366402894,1750233044121,-576.25,0.00022904,6]
[366402895,1750233044130,-665.73,0.00022904,6]
[366402896,1750233044140,-255.16769058,0.00023003,8]
[366402897,1750233044150,-834.99,0.00023013,6]
[366402898,1750233044159,-460.0,0.00023013,6]
[366402899,1750233044169,-570.41,0.00023013,6]
[366402900,1750233044178,-695.73,0.00023013,6]
[366402901,1750233044188,-460.0,0.00023013,6]
[366402902,1750233044198,-1154.85,0.00023013,6]
[366402903,1750233044207,-488.72,0.00023013,6]
[366402904,1750233044216,-460.0,0.00023013,6]
[366402905,1750233044226,-460.0,0.00023013,6]
[366402906,1750233044236,-494.61,0.00023013,6]
[366402907,1750233044247,-460.0,0.00023013,6]
[366402908,1750233044256,-460.0,0.00023013,6]
[366402909,1750233044266,-1685.8,0.00023013,6]
[366402910,1750233044275,-272.96,0.00023013,6]
[366402911,1750233044285,-460.0,0.00023013,6]
[366402912,1750233044294,-576.25,0.00023013,6]
[366402913,1750233044304,-665.73,0.00023013,6]
[366402914,1750233044313,-1891.6,0.00023103,2]
[366402915,1750233044332,-834.99,0.00023123,6]
[366402916,1750233044342,-460.0,0.00023123,6]
[366402917,1750233044352,-570.41,0.00023123,6]
[366402918,1750233044362,-695.73,0.00023123,6]
[366402919,1750233044372,-460.0,0.00023123,6]
[366402920,1750233044382,-1154.85,0.00023123,6]
[366402921,1750233044392,-488.72,0.00023123,6]
[366402922,1750233044402,-460.0,0.00023123,6]
[366402923,1750233044411,-460.0,0.00023123,6]
[366402924,1750233044421,-460.0,0.00023123,6]
[366402925,1750233044430,-460.0,0.00023123,6]
[366402926,1750233044440,-1685.8,0.00023123,6]
[366402927,1750233044451,-460.0,0.00023123,6]
[366402928,1750233044461,-576.25,0.00023123,6]
[366402929,1750233044470,-665.73,0.00023123,6]
[366402930,1750233044480,-427.88079357,0.00023147,2]
[366402931,1750233044490,-2703.08547944,0.00023157,2]
[366402932,1750233044499,-160.0,0.00023162,2]
[366402933,1750233044509,-59618.72,0.000232,7]
[366402934,1750233044518,-255.16769058,0.0002321,8]
[366402935,1750233044528,-834.99,0.00023232,6]
[366402936,1750233044538,-460.0,0.00023232,6]
[366402937,1750233044550,-570.41,0.00023232,6]
[366402938,1750233044560,-695.73,0.00023232,6]
[366402939,1750233044569,-460.0,0.00023232,6]
[366402940,1750233044579,-1154.85,0.00023232,6]
[366402941,1750233044590,-488.72,0.00023232,6]
[366402942,1750233044599,-460.0,0.00023232,6]
[366402943,1750233044608,-480.29,0.00023232,6]
[366402944,1750233044619,-460.0,0.00023232,6]
[366402945,1750233044632,-460.0,0.00023232,6]
[366402946,1750233044642,-1685.8,0.00023232,6]
[366402947,1750233044651,-460.0,0.00023232,6]
[366402948,1750233044660,-576.25,0.00023232,6]
[366402949,1750233044670,-665.73,0.00023232,6]
[366402950,1750233044680,-2374.08,0.000233,7]
[366402951,1750233044690,-5000.0,0.00023301,2]
[366402952,1750233044700,-230.97615786,0.00023316,2]
[366402953,1750233044710,-834.99,0.00023342,6]
[366402954,1750233044719,-362.01,0.00023342,6]
[366402955,1750233044729,-570.41,0.00023342,6]
[366402956,1750233044741,-695.73,0.00023342,6]
[366402957,1750233044751,-460.0,0.00023342,6]
[366402958,1750233044761,-1154.85,0.00023342,6]
[366402959,1750233044772,-488.72,0.00023342,6]
[366402960,1750233044783,-460.0,0.00023342,6]
[366402961,1750233044792,-460.0,0.00023342,6]
[366402962,1750233044803,-460.0,0.00023342,6]
[366402963,1750233044813,-1685.8,0.00023342,6]
[366402964,1750233044823,-460.0,0.00023342,6]
[366402965,1750233044833,-576.25,0.00023342,6]
[366402966,1750233044843,-665.73,0.00023342,6]
[366402967,1750233044853,-427.88079357,0.00023369,2]
[366402968,1750233044863,-255.16769058,0.00023417,9]
[366402969,1750233044873,-1800.0,0.00023424,2]
[366402970,1750233044882,-834.99,0.00023452,6]
[366402971,1750233044892,-570.41,0.00023452,6]
[366402972,1750233044902,-695.73,0.00023452,6]
[366402973,1750233044912,-460.0,0.00023452,6]
[366402974,1750233044922,-1154.85,0.00023452,6]
[366402975,1750233044932,-488.72,0.00023452,6]
[366402976,1750233044941,-460.0,0.00023452,6]
[366402977,1750233044951,-460.0,0.00023452,6]
[366402978,1750233044960,-460.0,0.00023452,6]
[366402979,1750233044970,-1685.8,0.00023452,6]
[366402980,1750233044979,-460.0,0.00023452,6]
[366402981,1750233044989,-576.25,0.00023452,6]
[366402982,1750233044999,-665.73,0.00023452,6]
[366402983,1750233045009,-834.99,0.00023561,6]
[366402984,1750233045018,-570.41,0.00023561,6]
[366402985,1750233045028,-695.73,0.00023561,6]
[366402986,1750233045038,-460.0,0.00023561,6]
[366402987,1750233045047,-1154.85,0.00023561,6]
[366402988,1750233045057,-488.72,0.00023561,6]
[366402989,1750233045066,-460.0,0.00023561,6]
[366402990,1750233045076,-460.0,0.00023561,6]
[366402991,1750233045085,-460.0,0.00023561,6]
[366402992,1750233045095,-1685.8,0.00023561,6]
[366402993,1750233045104,-460.0,0.00023561,6]
[366402994,1750233045114,-576.25,0.00023561,6]
[366402995,1750233045124,-665.73,0.00023561,6]
[366402996,1750233045133,-427.88079357,0.00023562,2]
[366402997,1750233045143,-255.16769058,0.00023624,9]
[366402998,1750233045152,-834.99,0.00023671,6]
[366402999,1750233045162,-570.41,0.00023671,6]
[366403000,1750233045171,-695.73,0.00023671,6]
[366403001,1750233045181,-460.0,0.00023671,6]
[366403002,1750233045191,-1154.85,0.00023671,6]
[366403003,1750233045200,-488.72,0.00023671,6]
[366403004,1750233045210,-460.0,0.00023671,6]
[366403005,1750233045220,-460.0,0.00023671,6]
[366403006,1750233045229,-460.0,0.00023671,6]
[366403007,1750233045239,-1685.8,0.00023671,6]
[366403008,1750233045249,-460.0,0.00023671,6]
[366403009,1750233045258,-576.25,0.00023671,6]
[366403010,1750233045268,-665.73,0.00023671,6]
[366403011,1750233045277,-834.99,0.0002378,6]
[366403012,1750233045288,-570.41,0.0002378,6]
[366403013,1750233045298,-695.73,0.0002378,6]
[366403014,1750233045308,-460.0,0.0002378,6]
[366403015,1750233045317,-1154.85,0.0002378,6]
[366403016,1750233045326,-488.72,0.0002378,6]
[366403017,1750233045336,-460.0,0.0002378,6]
[366403018,1750233045345,-460.0,0.0002378,6]
[366403019,1750233045355,-460.0,0.0002378,6]
[366403020,1750233045365,-1685.8,0.0002378,6]
[366403021,1750233045375,-460.0,0.0002378,6]
[366403022,1750233045384,-576.25,0.0002378,6]
[366403023,1750233045394,-665.73,0.0002378,6]
[366403024,1750233045404,-255.16769058,0.00023831,10]
[366403025,1750233045413,-834.99,0.0002389,6]
[366403026,1750233045423,-570.41,0.0002389,6]
[366403027,1750233045432,-695.73,0.0002389,6]
[366403028,1750233045442,-460.0,0.0002389,6]
[366403029,1750233045451,-1154.85,0.0002389,6]
[366403030,1750233045461,-488.72,0.0002389,6]
[366403031,1750233045470,-346.86613312,0.0002389,6]
[366403032,1750233045480,-501.65,0.0002389,6]
[366403033,1750233045489,-544.89,0.0002389,6]
[366403034,1750233045499,-1685.8,0.0002389,6]
[366403035,1750233045509,-460.0,0.0002389,6]
[366403036,1750233045518,-576.25,0.0002389,6]
[366403037,1750233045528,-665.73,0.0002389,6]
[366403038,1750233045538,-601.73985976,0.00023904,2]
[366403039,1750233045551,-500.59896885,0.00023906,2]
[366403040,1750233045561,-427.88079357,0.00023918,2]
[366403041,1750233045570,-2400.0,0.00023972,2]
[366403042,1750233045579,-158.80186321,0.00023973,2]
[366403043,1750233045590,-6561.97605,0.00023999,4]
[366403044,1750233045600,-30093.0,0.00024,2]
[366403045,1750233045609,-73742.74386051,0.00024,10]
[366403048,1750233045873,-160.0,0.00019043,2]
[366403051,1750233045883,-184.73744264,0.00021917,6]
[366403055,1750233045895,-275.26255736,0.00021917,6]
[366403057,1750233045904,-7275.5882708,0.00024,10]
[366403059,1750233237032,-256.46804464,0.00018157,2]
[366403060,1750233241988,-163.45706847,0.00018157,2]
[366403061,1750233246954,166.668646,0.00013699,2]
[366403062,1750233248016,-300.0,0.00018157,2]
[366403063,1750233255757,-160.0,0.00018157,2]
[366403064,1750233258333,-449.0,0.00018157,2]
[366403065,1750233275224,-1370.0,0.00018157,2]
[366403066,1750233362146,2115.58156376,0.000181,2]
[366403067,1750233362170,2884.41843624,0.000181,2]
[366403068,1750233377913,5000.0,0.000181,2]
[366403069,1750233394470,1072.45706847,0.000181,2]
[366403070,1750233500134,180.836122,0.00018173,120]
[366403071,1750233500613,-4.16036633,0.00018157,2]
[366403072,1750233500637,-160.48223308,0.00018173,2]
[366403073,1750233603699,-20.35388892,0.00018173,2]
[366403074,1750233603725,-217.64611108,0.00018173,2]
[366403075,1750233615224,238.0,0.000181,2]
[366403076,1750233660207,1248.0,0.000181,2]
[366403077,1750233660235,3430.23402232,0.000181,2]
[366403078,1750233928174,430.8358401,0.00018025,2]
[366403079,1750233962309,205.1564275,0.00018025,2]
[366403080,1750234028993,1215.0,0.00018173,2]
[366403081,1750234029694,-151.0,0.00018173,2]
[366403082,1750234067431,-3634.0,0.00018173,2]
[366403083,1750234073732,244.73567309,0.00018173,2]
[366403113,1750234232895,-282.35388892,0.00018173,2]
[366403115,1750234232905,-500.0,0.00018173,2]
[366403117,1750234232914,-468.28998075,0.00018173,2]
[366403119,1750234232924,-160.0,0.00018746,2]
[366403121,1750234232933,-1347.93529298,0.000189,2]
[366403123,1750234232943,-1050.38964399,0.00019,3]
[366403125,1750234232952,-1021.89676851,0.00019031,2]
[366403128,1750234232962,-1021.89676851,0.00019031,2]
[366403130,1750234232972,-1021.89676851,0.00019031,2]
[366403132,1750234232981,-1021.89676851,0.00019031,2]
[366403134,1750234232991,-1021.89676851,0.00019031,2]
[366403136,1750234233000,-1021.89676851,0.00019031,2]
[366403138,1750234233010,-300.0,0.00019031,2]
[366403140,1750234233019,-1200.0,0.00019031,2]
[366403142,1750234233028,-250.21308523,0.00019032,2]
[366403144,1750234233038,-8371.74365398,0.00019032,2]
[366403146,1750234233050,-1115.51770175,0.00019032,2]
[366403148,1750234233062,-15862.67435178,0.00019032,2]
[366403150,1750234233072,-300.0,0.00019033,2]
[366403152,1750234233082,-160.0,0.00019037,2]